fUSD/lending_fUSD_20260301
["ID","MTS","AMOUNT","RATE_DAILY","PERIOD"]
[406977702,1772398247524,-500.0,0.00014745,2]
[406977703,1772398247534,-500.0,0.00014745,2]
[406977704,1772398247543,-500.0,0.00014745,2]
[406977705,1772398247552,-500.0,0.00014745,2]
[406977706,1772398247561,-500.0,0.00014745,2]
[406977707,1772398247571,-281.18620333,0.00014745,2]
[406977708,1772398247580,-500.0,0.00014745,2]
[406977709,1772398247591,-500.0,0.00014745,2]
[406977710,1772398247600,-500.0,0.00014745,2]
[406977711,1772398247609,-500.0,0.00014745,2]
[406977712,1772398247618,-500.0,0.00014745,2]
[406977713,1772398247628,-500.0,0.00014745,2]
[406977714,1772398247640,-500.0,0.00014745,2]
[406977715,1772398247651,-500.0,0.00014745,2]
[406977716,1772398247661,-500.0,0.00014745,2]
[406977717,1772398247672,-500.0,0.00014745,2]
[406977718,1772398247686,-500.0,0.00014745,2]
[406977719,1772398247695,-500.0,0.00014745,2]
[406977720,1772398247705,-500.0,0.00014745,2]
[406977721,1772398247717,-500.0,0.00014745,2]
[406977722,1772398247727,-500.0,0.00014745,2]
[406977723,1772398247736,-500.0,0.00014745,2]
[406977724,1772398247745,-500.0,0.00014745,2]
[406977725,1772398247755,-500.0,0.00014745,2]
[406977726,1772398247764,-500.0,0.00014745,2]
[406977727,1772398247775,-500.0,0.00014745,2]
[406977728,1772398247784,-500.0,0.00014745,2]
[406977729,1772398247794,-500.0,0.00014745,2]
[406977730,1772398247803,-500.0,0.00014745,2]
[406977731,1772398247812,-500.0,0.00014745,2]
[406977732,1772398247823,-500.0,0.00014745,2]
[406977733,1772398247832,-500.0,0.00014745,2]
[406977734,1772398247841,-391.70323882,0.00014745,2]
[406977735,1772398247850,-454.69204283,0.00014745,2]
[406977736,1772398247861,-500.0,0.00014745,2]
[406977737,1772398247870,-500.0,0.00014745,2]
[406977738,1772398247880,-500.0,0.00014745,2]
[406977739,1772398247889,-500.0,0.00014745,2]
[406977740,1772398247899,-500.0,0.00014745,2]
[406977741,1772398247909,-500.0,0.00014745,2]
[406977742,1772398247918,-500.0,0.00014745,2]
[406977743,1772398247928,-500.0,0.00014745,2]
[406977744,1772398247937,-500.0,0.00014745,2]
[406977745,1772398247946,-500.0,0.00014745,2]
[406977746,1772398247955,-500.0,0.00014745,2]
[406977747,1772398247964,-500.0,0.00014745,2]
[406977748,1772398247974,-500.0,0.00014745,2]
[406977749,1772398247983,-500.0,0.00014745,2]
[406977750,1772398247992,-500.0,0.00014745,2]
[406977751,1772398248001,-500.0,0.00014745,2]
[406977752,1772398248010,-500.0,0.00014745,2]
[406977753,1772398248019,-500.0,0.00014745,2]
[406977754,1772398248028,-500.0,0.00014745,2]
[406977755,1772398248037,-500.0,0.00014745,2]
[406977756,1772398248047,-500.0,0.00014745,2]
[406977757,1772398248056,-500.0,0.00014745,2]
[406977758,1772398248066,-500.0,0.00014745,2]
[406977759,1772398248076,-386.19326799,0.00014745,2]
[406977760,1772398248086,-500.0,0.00014745,2]
[406977761,1772398248095,-500.0,0.00014745,2]
[406977762,1772398248105,-500.0,0.00014745,2]
[406977763,1772398248114,-500.0,0.00014745,2]
[406977764,1772398248124,-500.0,0.00014745,2]
[406977765,1772398248133,-440.74370174,0.00014745,2]
[406977766,1772398248142,-500.0,0.00014745,2]
[406977767,1772398248152,-500.0,0.00014745,2]
[406977768,1772398248161,-500.0,0.00014745,2]
[406977769,1772398248170,-500.0,0.00014745,2]
[406977770,1772398248179,-159.80083652,0.00014745,2]
[406977771,1772398248189,-500.0,0.00014745,2]
[406977772,1772398248198,-500.0,0.00014745,2]
[406977773,1772398248208,-500.0,0.00014745,2]
[406977774,1772398248218,-500.0,0.00014745,2]
[406977775,1772398248227,-500.0,0.00014745,2]
[406977776,1772398248236,-500.0,0.00014745,2]
[406977777,1772398248246,-500.0,0.00014745,2]
[406977778,1772398248256,-500.0,0.00014745,2]
[406977779,1772398248266,-500.0,0.00014745,2]
[406977780,1772398248275,-500.0,0.00014745,2]
[406977781,1772398248284,-500.0,0.00014745,2]
[406977782,1772398248293,-500.0,0.00014745,2]
[406977783,1772398248303,-500.0,0.00014745,2]
[406977784,1772398248312,-500.0,0.00014745,2]
[406977785,1772398248323,-500.0,0.00014745,2]
[406977786,1772398248332,-500.0,0.00014745,2]
[406977787,1772398248341,-517.69601113,0.00014745,2]
[406977788,1772398248351,-201.93286099,0.00014785,2]
[406977789,1772398248360,-151.0,0.00014791,2]
[406977790,1772398248370,-151.0,0.00014791,2]
[406977791,1772398248379,-151.0,0.00014791,2]
[406977792,1772398248388,-151.0,0.00014791,2]
[406977793,1772398248398,-500.0,0.00014801,2]
[406977794,1772398248407,-500.0,0.00014801,2]
[406977795,1772398248417,-181.19228596,0.00014818,2]
[406977796,1772398248427,-12735.41611968,0.00014823,2]
[406977797,1772398248532,-931.57210132,0.00014823,2]
[406977798,1772398248542,-1000.0,0.00014845,2]
[406977799,1772398248553,-153.68,0.00014845,2]
[406977800,1772398248563,-151.0,0.0001487,2]
[406977801,1772398248573,-1340.0,0.00014873,2]
[406977802,1772398248584,-3500.0,0.00014873,2]
[406977803,1772398248594,-1041.0,0.00014873,2]
[406977804,1772398248604,-619.0,0.00014873,2]
[406977805,1772398248615,-150.0,0.00014873,2]
[406977806,1772398248624,-1278.0,0.00014873,2]
[406977807,1772398248633,-432.622,0.00014873,2]
[406977808,1772398248645,-4575.0,0.00014873,2]
[406977809,1772398248653,-1416.551,0.00014873,2]
[406977810,1772398248663,-241.16699,0.00014874,2]
[406977811,1772398248673,-241.16699,0.00014874,2]
[406977812,1772398248682,-241.16699,0.00014874,2]
[406977813,1772398248692,-241.167,0.00014874,2]
[406977814,1772398248701,-151.0,0.00014874,2]
[406977815,1772398248710,-21449.7772684,0.00014874,2]
[406977816,1772398248720,-14915.9906263,0.00014884,2]
[406977817,1772398248729,-1115.76377868,0.0001489,2]
[406977818,1772398248739,-1536.35,0.00014977,2]
[406977819,1772398248749,-250.0,0.00015,2]
[406977820,1772398248759,-900.0,0.00015068,2]
[406977821,1772398248770,-452.936791,0.00015068,2]
[406977822,1772398248780,-452.936791,0.00015068,2]
[406977823,1772398248790,-452.936791,0.00015068,2]
[406977824,1772398248799,-452.936791,0.00015068,2]
[406977825,1772398248809,-452.936791,0.00015068,2]
[406977826,1772398248819,-452.936791,0.00015068,2]
[406977827,1772398248828,-452.936791,0.00015068,2]
[406977828,1772398248837,-452.936791,0.00015068,2]
[406977829,1772398248847,-452.936791,0.00015068,2]
[406977830,1772398248855,-452.936791,0.00015068,2]
[406977831,1772398248866,-452.936791,0.00015068,2]
[406977832,1772398248876,-452.936791,0.00015068,2]
[406977833,1772398248887,-452.936791,0.00015068,2]
[406977834,1772398248897,-452.936791,0.00015068,2]
[406977835,1772398248907,-452.936791,0.00015068,2]
[406977836,1772398248918,-452.936791,0.00015068,2]
[406977837,1772398248927,-452.936791,0.00015068,2]
[406977838,1772398248937,-452.936791,0.00015068,2]
[406977839,1772398248947,-452.936791,0.00015068,2]
[406977840,1772398248957,-452.936794,0.00015068,2]
[406977841,1772398248966,-10203.9622654,0.00015093,2]
[406977842,1772398248976,-930.0,0.000151,2]
[406977843,1772398248985,-993.0,0.000151,2]
[406977844,1772398248995,-155.0,0.00015131,2]
[406977845,1772398249005,-9951.84,0.00015194,2]
[406977846,1772398249015,-45927.64900619,0.00015209,2]
[406977847,1772398249024,-200.0,0.00015226,2]
[406977848,1772398249034,-1536.35,0.00015251,2]
[406977849,1772398249043,-222.0,0.00015254,30]
[406977850,1772398249052,-160.0,0.00015297,2]
[406977851,1772398249062,-174.09452548,0.00015297,2]
[406977852,1772398249071,-2000.0,0.000153,2]
[406977853,1772398249081,-9999.99,0.0001531,2]
[406977854,1772398249090,-150.99,0.0001531,2]
[406977855,1772398249100,-9999.99,0.0001531,2]
[406977856,1772398249109,-299.99,0.0001531,2]
[406977857,1772398249119,-150.99,0.0001531,2]
[406977858,1772398249128,-9999.99,0.0001531,2]
[406977859,1772398249137,-9999.99,0.0001531,2]
[406977860,1772398249147,-999.99,0.0001531,2]
[406977861,1772398249156,-8712.46,0.0001531,2]
[406977862,1772398249166,-4324.06,0.0001531,2]
[406977863,1772398249176,-599.60298507,0.00015332,2]
[406977864,1772398249186,-209.40437684,0.00015333,2]
[406977865,1772398249195,-160.8660825,0.00015347,2]
[406977866,1772398249205,-289.26938955,0.00015347,2]
[406977867,1772398249214,-736.0,0.00015372,2]
[406977868,1772398249224,-4786.092237,0.00015381,2]
[406977869,1772398249234,-3328.2073772,0.00015391,2]
[406977870,1772398249243,-901.51079573,0.00015426,2]
[406977871,1772398249253,-150.0,0.00015428,2]
[406977872,1772398249262,-171.631,0.00015428,2]
[406977873,1772398249272,-150.0,0.00015428,2]
[406977874,1772398249281,-150.0,0.00015428,2]
[406977875,1772398249291,-150.0,0.00015428,2]
[406977876,1772398249300,-150.0,0.00015428,2]
[406977877,1772398249309,-150.0,0.00015428,2]
[406977878,1772398249319,-150.0,0.00015428,2]
[406977879,1772398249328,-1600.0,0.00015434,2]
[406977880,1772398249339,-823.0,0.00015477,2]
[406977881,1772398249348,-823.0,0.00015477,2]
[406977882,1772398249358,-266.38,0.00015518,2]
[406977883,1772398249367,-1536.35,0.00015525,2]
[406977884,1772398249376,-3292.0,0.00015557,2]
[406977885,1772398249385,-150.25179929,0.00015565,2]
[406977886,1772398249395,-152.95,0.00015582,2]
[406977887,1772398249404,-2000.0,0.000156,2]
[406977888,1772398249414,-151.0,0.00015716,2]
[406977889,1772398249424,-150.25179929,0.00015719,2]
[406977890,1772398249434,-10203.9622654,0.00015738,2]
[406977891,1772398249444,-200.0,0.00015774,2]
[406977892,1772398249456,-163.85650104,0.00015784,2]
[406977893,1772398249467,-1536.35,0.00015799,2]
[406977894,1772398249477,-644.0,0.00015832,2]
[406977895,1772398249486,-150.0,0.00015832,2]
[406977896,1772398249495,-150.0,0.00015832,2]
[406977897,1772398249505,-198.0,0.00015832,2]
[406977898,1772398249515,-150.25179929,0.00015873,2]
[406977899,1772398249526,-217.15233878,0.00015881,2]
[406977900,1772398249536,-45927.64900619,0.00015882,2]
[406977901,1772398249547,-151.0,0.00015882,2]
[406977902,1772398249557,-150.0,0.000159,2]
[406977903,1772398249569,-2000.0,0.000159,2]
[406977904,1772398249579,-150.0,0.000159,2]
[406977905,1772398249589,-150.0,0.000159,2]
[406977906,1772398249599,-744.0,0.00015998,2]
[406977907,1772398249609,-150.0,0.00015998,2]
[406977908,1772398249618,-294.0,0.00015998,2]
[406977909,1772398249628,-1536.47057164,0.00016073,2]
[406977910,1772398249638,-3000.0,0.00016082,2]
[406977911,1772398249652,-800.0,0.00016082,2]
[406977912,1772398249662,-500.0,0.000161,5]
[406977913,1772398249672,-500.0,0.000161,2]
[406977914,1772398249683,-1000.0,0.00016194,2]
[406977915,1772398249692,-2000.0,0.000162,2]
[406977916,1772398249701,-965.0,0.00016275,2]
[406977917,1772398249711,-1433.0,0.00016275,2]
[406977918,1772398249724,-200.0,0.00016322,2]
[406977919,1772398249734,-600.0,0.00016356,2]
[406977920,1772398249744,-10203.9622654,0.00016384,2]
[406977921,1772398249753,-225.18697532,0.00016429,2]
[406977922,1772398249764,-193.0,0.00016438,2]
[406977923,1772398249773,-160.87860148,0.00016438,2]
[406977924,1772398249782,-518.0,0.00016438,2]
[406977925,1772398249792,-900.0,0.00016438,2]
[406977926,1772398249802,-619.79396,0.00016438,2]
[406977927,1772398249811,-619.79396,0.00016438,2]
[406977928,1772398249821,-619.79396,0.00016438,2]
[406977929,1772398249830,-619.79396,0.00016438,2]
[406977930,1772398249839,-619.79396,0.00016438,2]
[406977931,1772398249848,-619.79396,0.00016438,2]
[406977932,1772398249858,-619.79396,0.00016438,2]
[406977933,1772398249867,-619.79396,0.00016438,2]
[406977934,1772398249877,-619.79396,0.00016438,2]
[406977935,1772398249971,-619.79396,0.00016438,2]
[406977936,1772398249986,-619.79396,0.00016438,2]
[406977937,1772398249996,-619.79396,0.00016438,2]
[406977938,1772398250004,-619.79396,0.00016438,2]
[406977939,1772398250014,-619.79396,0.00016438,2]
[406977940,1772398250022,-619.79396,0.00016438,2]
[406977941,1772398250032,-619.79396,0.00016438,2]
[406977942,1772398250041,-619.79396,0.00016438,2]
[406977943,1772398250051,-619.79396,0.00016438,2]
[406977944,1772398250061,-619.79396,0.00016438,2]
[406977945,1772398250071,-619.79396,0.00016438,2]
[406977946,1772398250081,-151.577509,0.00016438,2]
[406977947,1772398250090,-244.6081,0.00016438,2]
[406977948,1772398250101,-244.6081,0.00016438,2]
[406977949,1772398250110,-244.6081,0.00016438,2]
[406977950,1772398250119,-244.6081,0.00016438,2]
[406977951,1772398250129,-244.6081,0.00016438,2]
[406977952,1772398250138,-244.6081,0.00016438,2]
[406977953,1772398250148,-244.6081,0.00016438,2]
[406977954,1772398250157,-244.6081,0.00016438,2]
[406977955,1772398250167,-244.6081,0.00016438,2]
[406977956,1772398250176,-244.6081,0.00016438,2]
[406977957,1772398250186,-244.6081,0.00016438,2]
[406977958,1772398250196,-244.6081,0.00016438,2]
[406977959,1772398250206,-244.6081,0.00016438,2]
[406977960,1772398250215,-244.6081,0.00016438,2]
[406977961,1772398250225,-244.6081,0.00016438,2]
[406977962,1772398250235,-244.6081,0.00016438,2]
[406977963,1772398250245,-244.6081,0.00016438,2]
[406977964,1772398250254,-244.6081,0.00016438,2]
[406977965,1772398250264,-244.6081,0.00016438,2]
[406977966,1772398250273,-244.60811,0.00016438,2]
[406977967,1772398250283,-151.0,0.00016438,2]
[406977968,1772398250293,-151.0,0.00016438,2]
[406977969,1772398250303,-151.0,0.00016438,2]
[406977970,1772398250313,-151.0,0.00016438,2]
[406977971,1772398250324,-151.0,0.00016438,2]
[406977972,1772398250333,-151.0,0.00016438,2]
[406977973,1772398250343,-151.0,0.00016438,2]
[406977974,1772398250354,-151.0,0.00016438,2]
[406977975,1772398250363,-151.0,0.00016438,2]
[406977976,1772398250373,-201.691028,0.00016438,2]
[406977977,1772398250383,-151.0,0.00016438,2]
[406977978,1772398250393,-151.0,0.00016438,2]
[406977979,1772398250403,-151.0,0.00016438,2]
[406977980,1772398250413,-151.0,0.00016438,2]
[406977981,1772398250423,-151.0,0.00016438,2]
[406977982,1772398250432,-151.0,0.00016438,2]
[406977983,1772398250441,-151.0,0.00016438,2]
[406977984,1772398250450,-151.0,0.00016438,2]
[406977985,1772398250459,-151.0,0.00016438,2]
[406977986,1772398250469,-151.0,0.00016438,2]
[406977987,1772398250478,-151.0,0.00016438,2]
[406977988,1772398250487,-151.0,0.00016438,2]
[406977989,1772398250496,-151.0,0.00016438,2]
[406977990,1772398250505,-151.0,0.00016438,2]
[406977991,1772398250515,-151.0,0.00016438,2]
[406977992,1772398250524,-151.0,0.00016438,2]
[406977993,1772398250533,-187.815651,0.00016438,2]
[406977994,1772398250542,-518.0,0.00016493,2]
[406977995,1772398250552,-2000.0,0.000165,2]
[406977996,1772398250561,-518.0,0.00016548,2]
[406977997,1772398250570,-151.0,0.00016552,2]
[406977998,1772398250579,-45927.64900619,0.00016554,2]
[406977999,1772398250593,-666.0,0.00016565,2]
[406978000,1772398250612,-150.0,0.00016565,2]
[406978001,1772398250628,-150.0,0.00016565,2]
[406978002,1772398250649,-150.0,0.00016565,2]
[406978003,1772398250666,-150.0,0.00016565,2]
[406978004,1772398250680,-150.0,0.00016565,2]
[406978005,1772398250697,-150.0,0.00016565,2]
[406978006,1772398250713,-237.0,0.00016565,2]
[406978007,1772398250732,-518.0,0.00016602,2]
[406978008,1772398250749,-518.0,0.00016657,2]
[406978009,1772398250766,-150.0,0.00016684,7]
[406978010,1772398250780,-150.0,0.00016684,7]
[406978011,1772398250800,-212.0,0.00016684,7]
[406978012,1772398250817,-518.0,0.00016712,2]
[406978013,1772398250831,-193.0,0.00016712,2]
[406978014,1772398250852,-166.1,0.00016712,2]
[406978015,1772398250864,-518.0,0.00016767,2]
[406978016,1772398250879,-1252.0,0.00016769,2]
[406978017,1772398250895,-2000.0,0.000168,2]
[406978018,1772398250908,-518.0,0.00016822,2]
[406978019,1772398250922,-500.0,0.00016837,2]
[406978020,1772398250941,-6692.01571544,0.00016839,2]
[406978021,1772398250957,-163.85650104,0.00016842,2]
[406978022,1772398250972,-417.192265,0.00016865,7]
[406978023,1772398250987,-200.0,0.0001687,2]
[406978024,1772398251002,-518.0,0.00016876,2]
[406978025,1772398251016,-8820.941635,0.00016878,7]
[406978026,1772398251030,-518.0,0.00016931,2]
[406978027,1772398251045,-221.99,0.00016949,2]
[406978028,1772398251060,-153.68,0.00016966,2]
[406978029,1772398251074,-500.0,0.00016973,2]
[406978030,1772398251088,-500.0,0.00016973,2]
[406978031,1772398251102,-168.87102917,0.00016973,2]
[406978032,1772398251118,-500.0,0.00016973,2]
[406978033,1772398251134,-500.0,0.00016973,2]
[406978034,1772398251149,-500.0,0.00016973,2]
[406978035,1772398251165,-500.0,0.00016973,2]
[406978036,1772398251181,-682.808823,0.00016973,2]
[406978037,1772398251196,-682.808823,0.00016973,2]
[406978038,1772398251212,-682.808823,0.00016973,2]
[406978039,1772398251227,-682.808819,0.00016973,2]
[406978040,1772398251241,-151.0,0.00016973,2]
[406978041,1772398251256,-151.0,0.00016973,2]
[406978042,1772398251271,-151.0,0.00016973,2]
[406978043,1772398251286,-157.067351,0.00016973,2]
[406978044,1772398251302,-233.51889341,0.00016977,2]
[406978045,1772398251316,-1600.0,0.00016977,2]
[406978046,1772398251333,-151.0,0.00016978,2]
[406978047,1772398251347,-782.859413,0.00016978,2]
[406978048,1772398251361,-782.859413,0.00016978,2]
[406978049,1772398251376,-782.859413,0.00016978,2]
[406978050,1772398251390,-782.859412,0.00016978,2]
[406978051,1772398251404,-518.0,0.00016986,2]
[406978052,1772398251424,-193.0,0.00016986,2]
[406978053,1772398251439,-152.0,0.00016988,3]
[406978054,1772398251455,-281.0,0.00016996,2]
[406978055,1772398251470,-1562.93658697,0.00017,2]
[406978056,1772398251485,-21235.9745995,0.00017,2]
[406978057,1772398251500,-300.0,0.00017,2]
[406978058,1772398251517,-200.0,0.0001701,7]
[406978059,1772398251533,-2260.380115,0.00017019,7]
[406978060,1772398251543,-10203.9622654,0.00017029,2]
[406978061,1772398251553,-222.0,0.00017037,30]
[406978062,1772398251564,-518.0,0.00017041,2]
[406978063,1772398251737,-221.99,0.00017077,2]
[406978064,1772398251747,-518.0,0.00017096,2]
[406978065,1772398251756,-200.0,0.000171,2]
[406978066,1772398251766,-2000.0,0.000171,2]
[406978067,1772398251775,-4609.0,0.00017112,2]
[406978068,1772398251784,-155.0,0.00017138,7]
[406978069,1772398251794,-518.0,0.0001715,2]
[406978070,1772398251805,-518.0,0.00017205,2]
[406978071,1772398251815,-45927.64900619,0.00017227,2]
[406978072,1772398251825,-1595.514,0.00017254,2]
[406978073,1772398251835,-170.948,0.00017254,2]
[406978074,1772398251845,-518.0,0.0001726,2]
[406978075,1772398251856,-193.0,0.0001726,2]
[406978076,1772398251866,-1000.0,0.00017302,2]
[406978077,1772398251875,-518.0,0.00017315,2]
[406978078,1772398251885,-1000.0,0.00017365,2]
[406978079,1772398251895,-518.0,0.0001737,2]
[406978080,1772398251904,-168.0,0.00017384,2]
[406978081,1772398251914,-1000.0,0.00017396,2]
[406978082,1772398251923,-1000.0,0.00017398,2]
[406978083,1772398251932,-1000.0,0.00017401,2]
[406978084,1772398251942,-168.0,0.00017415,2]
[406978085,1772398251951,-200.0,0.00017418,2]
[406978086,1772398251961,-518.0,0.00017424,2]
[406978087,1772398251971,-1000.0,0.00017427,2]
[406978088,1772398251980,-800.0,0.00017452,7]
[406978089,1772398251989,-3000.0,0.00017452,7]
[406978090,1772398251998,-1000.0,0.00017453,2]
[406978091,1772398252008,-1000.0,0.00017454,2]
[406978092,1772398252017,-1000.0,0.00017466,2]
[406978093,1772398252027,-1000.0,0.00017468,2]
[406978094,1772398252036,-1000.0,0.0001747,2]
[406978095,1772398252046,-1000.0,0.00017471,2]
[406978096,1772398252055,-1000.0,0.00017473,2]
[406978097,1772398252065,-518.0,0.00017479,2]
[406978098,1772398252074,-1000.0,0.00017481,2]
[406978099,1772398252084,-1000.0,0.0001749,2]
[406978100,1772398252093,-1000.0,0.00017495,2]
[406978101,1772398252103,-1000.0,0.00017499,2]
[406978102,1772398252113,-1100.0,0.000175,6]
[406978103,1772398252122,-1000.0,0.00017506,2]
[406978104,1772398252133,-1000.0,0.00017511,2]
[406978105,1772398252143,-245.89976149,0.00017521,2]
[406978106,1772398252152,-440.69410624,0.00017521,2]
[406978107,1772398252162,-820.22794059,0.00017521,2]
[406978108,1772398252172,-500.0,0.00017521,2]
[406978109,1772398252182,-1000.0,0.00017521,2]
[406978110,1772398252191,-1000.0,0.00017523,2]
[406978111,1772398252201,-242.15909246,0.00017525,2]
[406978112,1772398252211,-1000.0,0.00017531,2]
[406978113,1772398252220,-1000.0,0.00017533,2]
[406978114,1772398252229,-518.0,0.00017534,2]
[406978115,1772398252239,-193.0,0.00017534,2]
[406978116,1772398252248,-1000.0,0.0001754,2]
[406978117,1772398252257,-1000.0,0.00017544,2]
[406978118,1772398252266,-1000.0,0.00017573,2]
[406978119,1772398252275,-1000.0,0.00017574,2]
[406978120,1772398252285,-1000.0,0.00017581,2]
[406978121,1772398252295,-518.0,0.00017589,2]
[406978122,1772398252304,-1000.0,0.0001759,2]
[406978123,1772398252314,-168.0,0.0001759,2]
[406978124,1772398252323,-1100.0,0.000176,6]
[406978125,1772398252333,-168.0,0.000176,2]
[406978126,1772398252342,-2132.64202107,0.0001764,2]
[406978127,1772398252352,-1000.0,0.00017642,2]
[406978128,1772398252361,-518.0,0.00017643,2]
[406978129,1772398252371,-1000.0,0.00017645,2]
[406978130,1772398252381,-1000.0,0.00017648,2]
[406978131,1772398252390,-155.0,0.00017653,2]
[406978132,1772398252399,-1000.0,0.00017667,2]
[406978133,1772398252408,-10203.9622654,0.00017674,2]
[406978134,1772398252418,-1000.0,0.00017685,2]
[406978135,1772398252428,-1000.0,0.00017685,2]
[406978136,1772398252438,-1000.0,0.00017697,2]
[406978137,1772398252447,-526.01719171,0.00017698,2]
[406978138,1772398252457,-1100.0,0.000177,6]
[406978139,1772398252466,-1000.0,0.00017709,2]
[406978140,1772398252476,-1000.0,0.00017717,2]
[406978141,1772398252485,-1000.0,0.00017723,2]
[406978142,1772398252494,-600.0,0.00017726,7]
[406978143,1772398252503,-1000.0,0.00017735,2]
[406978144,1772398252513,-168.0,0.00017748,2]
[406978145,1772398252522,-1000.0,0.00017752,2]
[406978146,1772398252531,-168.0,0.00017756,2]
[406978147,1772398252540,-1000.0,0.00017757,2]
[406978148,1772398252554,-1000.0,0.00017762,2]
[406978149,1772398252563,-1000.0,0.00017769,2]
[406978150,1772398252573,-1000.0,0.00017774,2]
[406978151,1772398252582,-1000.0,0.00017783,2]
[406978152,1772398252591,-1000.0,0.00017783,2]
[406978153,1772398252601,-1000.0,0.00017784,2]
[406978154,1772398252611,-1000.0,0.00017786,2]
[406978155,1772398252620,-1000.0,0.00017792,2]
[406978156,1772398252630,-1100.0,0.000178,6]
[406978157,1772398252642,-1000.0,0.00017801,2]
[406978158,1772398252653,-1000.0,0.00017801,2]
[406978159,1772398252663,-168.0,0.00017808,2]
[406978160,1772398252672,-5000.0,0.00017808,2]
[406978161,1772398252682,-193.0,0.00017808,2]
[406978162,1772398252691,-500.0,0.00017808,2]
[406978163,1772398252701,-151.0,0.00017808,2]
[406978164,1772398252711,-151.0,0.00017808,2]
[406978165,1772398252721,-278.322939,0.00017808,2]
[406978166,1772398252730,-800.0,0.00017808,2]
[406978167,1772398252739,-1000.0,0.00017809,2]
[406978168,1772398252748,-1000.0,0.00017812,2]
[406978169,1772398252758,-443.81782163,0.00017822,2]
[406978170,1772398252767,-1000.0,0.00017843,2]
[406978171,1772398252778,-1000.0,0.00017843,2]
[406978172,1772398252787,-500.0,0.00017863,2]
[406978173,1772398252796,-18386.25979377,0.00017867,2]
[406978174,1772398252806,-1000.0,0.00017873,2]
[406978175,1772398252815,-1340.0,0.00017873,2]
[406978176,1772398252824,-3500.0,0.00017873,2]
[406978177,1772398252833,-1041.0,0.00017873,2]
[406978178,1772398252842,-619.0,0.00017873,2]
[406978179,1772398252851,-150.0,0.00017873,2]
[406978180,1772398252860,-1278.0,0.00017873,2]
[406978181,1772398252869,-413.0,0.00017873,2]
[406978182,1772398252878,-4575.0,0.00017873,2]
[406978183,1772398252887,-150.0,0.00017876,14]
[406978184,1772398252896,-298.0,0.00017876,14]
[406978185,1772398252906,-194.0,0.00017876,30]
[406978186,1772398252915,-1000.0,0.00017879,2]
[406978187,1772398252923,-1000.0,0.00017891,2]
[406978188,1772398252932,-151.0,0.00017897,2]
[406978189,1772398252941,-300.0,0.00017899,2]
[406978190,1772398252950,-300.0,0.00017899,2]
[406978191,1772398252959,-300.0,0.00017899,2]
[406978192,1772398252968,-300.0,0.00017899,2]
[406978193,1772398252977,-163.85650104,0.000179,2]
[406978194,1772398252986,-2024.0,0.000179,6]
[406978195,1772398252996,-45927.64900619,0.000179,2]
[406978196,1772398253005,-1115.76377868,0.000179,2]
[406978197,1772398253014,-159.97943206,0.000179,2]
[406978198,1772398253023,-12735.41611968,0.000179,2]
[406978199,1772398253036,-931.57210132,0.000179,2]
[406978200,1772398253046,-181.19228596,0.000179,2]
[406978201,1772398253056,-1000.0,0.0001791,2]